[Event "POL-chT DMP Ekstraliga 2019"]
[Site "Katowice"]
[Date "2019.09.01"]
[Round "5.17"]
[White "Bronowicki, Mateusz"]
[Black "Jakubowski, Krzysztof"]
[Result "1/2-1/2"]
[ECO "E16"]
[WhiteElo "2271"]
[BlackElo "2518"]
[Annotator "ChessBase"]
[PlyCount "109"]
[EventDate "2019.08.28"]
[EventType "team-tourn"]
[EventCountry "POL"]
[SourceTitle "playchess.com"]
[Source "ChessBase"]
[SourceQuality "1"]
[TimeControl "40/5400+30:1800+30"]

1. d4 {[%emt 0:00:00]} Nf6 {[%emt 0:00:00]} 2. c4 {[%emt 0:00:00]} e6 {[%emt 0:00:00]} 3. Nf3 {[%emt 0:00:25]} Bb4+ {[%emt 0:00:25]} 4. Bd2 {[%emt 0:01:50]} Qe7 {[%emt 0:00:23]} 5. g3 {[%emt 0:11:42]} Bxd2+ {[%emt 0:00:21]} 6. Nbxd2 {[%emt 0:07:11]} d6 {[%emt 0:01:06]} 7. Bg2 {[%emt 0:03:50]} e5 {[%emt 0:00:21]} 8. Qb3 {[%emt 0:05:46]} O-O {[%emt 0:01:00]} 9. O-O {[%emt 0:01:54]} h6 {[%emt 0:02:27]} 10. e4 {[%emt 0:07:53]} c5 {[%emt 0:09:43]} 11. d5 {[%emt 0:05:05]} Nh5 {[%emt 0:03:00]} 12. Ne1 {[%emt 0:10:40]} f5 {[%emt 0:03:47]} 13. Qd1 {[%emt 0:01:38]} Nf6 {[%emt 0:02:32]} 14. Nd3 {[%emt 0:01:40]} g5 {[%emt 0:03:53]} 15. Qe2 {[%emt 0:09:42]} f4 {[%emt 0:13:53]} 16. a3 {[%emt 0:01:33]} Nbd7 {[%emt 0:01:50]} 17. Bh3 {[%emt 0:04:14]} Nb6 {[%emt 0:06:09]} 18. Bxc8 {[%emt 0:00:19]} Raxc8 {[%emt 0:00:46]} 19. f3 {[%emt 0:06:49]} Rf7 {[%emt 0:02:49]} 20. Qg2 {[%emt 0:06:27]} Rg7 {[%emt 0:02:36]} 21. g4 {[%emt 0:01:26]} Kf7 {[%emt 0:03:18]} 22. Kf2 {[%emt 0:00:25]} h5 {[%emt 0:00:18]} 23. h3 {[%emt 0:01:08]} Rh7 {[%emt 0:06:45]} 24. Ke2 {[%emt 0:00:16]} Qd7 {[%emt 0:01:24]} 25. b3 {[%emt 0:01:18]} Rch8 {[%emt 0:00:37]} 26. Rh1 {[%emt 0:00:31]} Nc8 {[%emt 0:01:49]} 27. Nf2 {[%emt 0:02:31]} Ne7 {[%emt 0:00:13]} 28. Rag1 {[%emt 0:03:56]} Ng6 {[%emt 0:03:10]} 29. Qf1 {[%emt 0:01:18]} Qc7 {[%emt 0:04:38]} 30. Qa1 {[%emt 0:01:38]} a5 {[%emt 0:01:16]} 31. a4 {[%emt 0:00:49]} Qd8 {[%emt 0:05:50]} 32. Qf1 {[%emt 0:00:21]} Rh6 {[%emt 0:00:37]} 33. Qa1 {[%emt 0:00:24]} R8h7 {[%emt 0:00:18]} 34. Qf1 {[%emt 0:00:38]} Nh4 {[%emt 0:03:46]} 35. Qa1 {[%emt 0:00:14]} Qh8 {[%emt 0:00:32]} 36. Qf1 {[%emt 0:00:16]} hxg4 {[%emt 0:02:07]} 37. hxg4 {[%emt 0:00:23]} Nd7 {[%emt 0:00:29]} 38. Rh3 {[%emt 0:02:08]} Nb8 {[%emt 0:00:23]} 39. Rgh1 {[%emt 0:00:36]} Na6 {[%emt 0:00:08]} 40. Nd3 {[%emt 0:00:00]} Ke7 {[%emt 0:00:00]} 41. Nf2 {[%emt 0:06:29]} Qd8 {[%emt 0:08:24]} 42. Nd3 {[%emt 0:04:20]} Kf6 {[%emt 0:04:38]} 43. Qa1 {[%emt 0:04:10]} Kg6 {[%emt 0:00:48]} 44. Qg1 {[%emt 0:05:24]} Qh8 {[%emt 0:00:44]} 45. Qf1 {[%emt 0:02:13]} Kg7 {[%emt 0:00:30]} 46. Nf2 {[%emt 0:01:22]} Nb4 {[%emt 0:00:26]} 47. Kd1 {[%emt 0:00:16]} Qd8 {[%emt 0:00:27]} 48. Nb1 {[%emt 0:02:41]} Kf7 {[%emt 0:04:18]} 49. Kc1 {[%emt 0:01:44]} Qh8 {[%emt 0:01:35]} 50. Nd2 {[%emt 0:00:12]} Ke7 {[%emt 0:01:42]} 51. Kd1 {[%emt 0:01:01]} Kd7 {[%emt 0:00:30]} 52. Kc1 {[%emt 0:00:10]} Kc7 {[%emt 0:00:41]} 53. Kd1 {[%emt 0:00:15]} Kd7 {[%emt 0:02:09]} 54. Kc1 {[%emt 0:00:05]} Kc7 {[%emt 0:00:14]} 55. Kd1 1/2-1/2

[Event "POL-chT DMP Ekstraliga 2019"]
[Site "Katowice"]
[Date "2019.09.01"]
[Round "5.18"]
[White "Buksa, Nataliya"]
[Black "Bartel, Marta"]
[Result "1-0"]
[ECO "B30"]
[WhiteElo "2406"]
[BlackElo "2244"]
[Annotator "NA"]
[PlyCount "101"]
[EventDate "2019.08.28"]
[EventType "team-tourn"]
[EventCountry "POL"]
[SourceTitle "playchess.com"]
[Source "ChessBase"]
[SourceQuality "1"]
[TimeControl "40/5400+30:1800+30"]

1. e4 {[%emt 0:00:00]} c5 {[%emt 0:00:00]} 2. Nf3 {[%emt 0:00:00]} Nc6 {[%emt 0:00:00]} 3. Bb5 {[%emt 0:00:00]} e6 {[%emt 0:00:02]} 4. O-O {[%emt 0:00:54]} Nge7 {[%emt 0:00:09]} 5. d4 {[%emt 0:00:04]} cxd4 {[%emt 0:00:11]} 6. Nxd4 {[%emt 0:00:04]} Qb6 {[%emt 0:00:21]} 7. Nxc6 {[%emt 0:01:06]} bxc6 {[%emt 0:00:07]} 8. Bd3 {[%emt 0:00:19]} Ng6 {[%emt 0:00:09]} 9. c4 {[%emt 0:00:29]} Bc5 {[%emt 0:01:20]} 10. Nc3 {[%emt 0:00:15]} Qc7 {[%emt 0:00:09]} 11. Na4 {[%emt 0:04:40]} Be7 {[%emt 0:03:56]} 12. c5 {[%emt 0:02:44]} d5 {[%emt 0:04:43]} 13. cxd6 {[%emt 0:05:25]} Bxd6 {[%emt 0:00:12]} 14. g3 {[%emt 0:00:28]} O-O {[%emt 0:19:30]} 15. Be3 {[%emt 0:00:04]} Rd8 {[%emt 0:16:14]} 16. f4 {[%emt 0:10:27]} Bb7 {[%emt 0:14:01]} 17. Rc1 {[%emt 0:08:50]} Qa5 {[%emt 0:04:31]} 18. Qc2 {[%emt 0:05:25]} Bf8 {[%emt 0:05:07]} 19. Nc5 {[%emt 0:16:53]} Bxc5 {[%emt 0:14:20]} 20. Bxc5 {[%emt 0:00:05]} Ba6 {[%emt 0:00:55]} 21. Bxa6 {[%emt 0:07:40]} Qxa6 {[%emt 0:00:01]} 22. b4 {[%emt 0:00:06]} h6 {[%emt 0:07:22]} 23. Rfd1 {[%emt 0:03:27]} Qb7 {[%emt 0:03:36]} 24. a3 {[%emt 0:00:56]} Qa6 {[%emt 0:01:12]} 25. a4 {[%emt 0:02:31]} Rac8 {[%emt 0:00:18]} 26. Kf2 {[%emt 0:03:37]} Qb7 {[%emt 0:01:56]} 27. Rd3 {[%emt 0:01:16]} e5 {[%emt 0:01:13]} 28. f5 {[%emt 0:01:24]} Nf8 {[%emt 0:00:02]} 29. Rcd1 {[%emt 0:00:15]} Rxd3 {[%emt 0:00:32]} 30. Qxd3 {[%emt 0:00:04]} Nh7 {[%emt 0:00:22]} 31. Kf3 {[%emt 0:09:23]} Nf6 {[%emt 0:00:16]} 32. a5 {[%emt 0:00:16]} a6 {[%emt 0:00:55]} 33. Bb6 {[%emt 0:02:44]} Re8 {[%emt 0:00:25]} 34. Qc4 {[%emt 0:05:20]} Rc8 {[%emt 0:00:44]} 35. Qc5 {[%emt 0:00:38]} Re8 {[%emt 0:01:52]} 36. Qc4 {[%emt 0:01:33]} Rc8 {[%emt 0:00:34]} 37. g4 {[%emt 0:00:07]} Nd7 {[%emt 0:00:32]} 38. Be3 {[%emt 0:00:20]} Nf6 {[%emt 0:00:34]} 39. h4 {[%emt 0:01:20]} Ne8 {[%emt 0:00:28]} 40. g5 {[%emt 0:00:00]} hxg5 {[%emt 0:00:00]} 41. hxg5 {[%emt 0:03:39]} Qb5 {[%emt 0:03:18]} 42. Qxb5 {[%emt 0:03:24]} cxb5 {[%emt 0:00:33]} 43. Bc5 {[%emt 0:10:51]} g6 {[%emt 0:08:23]} 44. fxg6 {[%emt 0:00:58]} fxg6 {[%emt 0:00:06]} 45. Rd5 {[%emt 0:00:03]} Nc7 {[%emt 0:01:39]} 46. Rxe5 {[%emt 0:03:00]} Re8 {[%emt 0:02:48]} 47. Rxe8+ {[%emt 0:00:30]} Nxe8 {[%emt 0:00:01]} 48. Kf4 {[%emt 0:00:04]} Kf7 {[%emt 0:01:21]} 49. Ke5 {[%emt 0:00:03]} Nc7 {[%emt 0:01:13]} 50. Kd6 {[%emt 0:00:06]} Ne6 {[%emt 0:00:06]} 51. Be3 {[%emt 0:00:02]} 1-0

[Event "POL-chT DMP Ekstraliga 2019"]
[Site "Katowice"]
[Date "2019.09.01"]
[Round "5.22"]
[White "Miton, Kamil"]
[Black "Simantsev, Mikhail"]
[Result "1-0"]
[ECO "A17"]
[WhiteElo "2589"]
[BlackElo "2346"]
[Annotator "ChessBase"]
[PlyCount "73"]
[EventDate "2019.08.28"]
[EventType "team-tourn"]
[EventCountry "POL"]
[SourceTitle "playchess.com"]
[Source "ChessBase"]
[SourceQuality "1"]
[TimeControl "40/5400+30:1800+30"]

1. Nf3 {[%emt 0:00:00]} Nf6 {[%emt 0:00:00]} 2. c4 {[%emt 0:00:00]} e6 {[%emt 0:01:00]} 3. Nc3 {[%emt 0:00:13]} Bb4 {[%emt 0:02:06]} 4. Qc2 {[%emt 0:02:04]} c5 {[%emt 0:13:33]} 5. a3 {[%emt 0:00:54]} Ba5 {[%emt 0:01:58]} 6. g3 {[%emt 0:00:46]} O-O {[%emt 0:05:06]} 7. Bg2 {[%emt 0:00:44]} Nc6 {[%emt 0:05:14]} 8. O-O {[%emt 0:00:52]} d6 {[%emt 0:02:46]} 9. d3 {[%emt 0:06:51]} h6 {[%emt 0:06:39]} 10. e3 {[%emt 0:01:32]} e5 {[%emt 0:13:18]} 11. b3 {[%emt 0:01:31]} Bg4 {[%emt 0:05:05]} 12. h3 {[%emt 0:01:51]} Be6 {[%emt 0:05:25]} 13. Bb2 {[%emt 0:01:56]} Qd7 {[%emt 0:09:15]} 14. Kh2 {[%emt 0:01:04]} Rfe8 {[%emt 0:01:03]} 15. Rad1 {[%emt 0:01:38]} Rac8 {[%emt 0:01:01]} 16. Ne2 {[%emt 0:18:31]} Bc7 {[%emt 0:06:21]} 17. e4 {[%emt 0:00:55]} Nh7 {[%emt 0:05:47]} 18. Nfg1 {[%emt 0:03:33]} f5 {[%emt 0:04:43]} 19. f4 {[%emt 0:00:23]} fxe4 {[%emt 0:01:49]} 20. dxe4 {[%emt 0:02:19]} Nd4 {[%emt 0:01:44]} 21. Nxd4 {[%emt 0:17:25]} cxd4 {[%emt 0:01:23]} 22. Qd3 {[%emt 0:00:07]} a6 {[%emt 0:01:08]} 23. a4 {[%emt 0:10:37]} Bb8 {[%emt 0:03:17]} 24. Rc1 {[%emt 0:01:45]} Bf7 {[%emt 0:01:02]} 25. Nf3 {[%emt 0:01:45]} Nf6 {[%emt 0:00:57]} 26. Nh4 {[%emt 0:01:44]} b5 {[%emt 0:00:04]} 27. cxb5 {[%emt 0:01:31]} axb5 {[%emt 0:00:02]} 28. axb5 {[%emt 0:00:58]} Rxc1 {[%emt 0:00:59]} 29. Bxc1 {[%emt 0:02:50]} Rc8 {[%emt 0:00:48]} 30. Bd2 {[%emt 0:00:52]} Rc5 {[%emt 0:00:28]} 31. fxe5 {[%emt 0:02:27]} dxe5 {[%emt 0:00:10]} 32. Nf5 {[%emt 0:00:07]} Qxb5 {[%emt 0:00:47]} 33. Qf3 {[%emt 0:00:22]} Qxb3 {[%emt 0:00:23]} 34. Qxb3 {[%emt 0:01:48]} Bxb3 {[%emt 0:00:01]} 35. Rb1 {[%emt 0:00:06]} Rb5 {[%emt 0:01:27]} 36. Bf1 {[%emt 0:00:17]} Rb7 {[%emt 0:00:37]} 37. Bc4+ {[%emt 0:01:23]} 1-0

[Event "POL-chT DMP Ekstraliga 2019"]
[Site "Katowice"]
[Date "2019.09.01"]
[Round "5.23"]
[White "Szustakowski, Antoni"]
[Black "Bulski, Krzysztof"]
[Result "1-0"]
[ECO "E20"]
[WhiteElo "2256"]
[BlackElo "2537"]
[Annotator "ChessBase"]
[PlyCount "93"]
[EventDate "2019.08.28"]
[EventType "team-tourn"]
[EventCountry "POL"]
[SourceTitle "playchess.com"]
[Source "ChessBase"]
[SourceQuality "1"]
[TimeControl "40/5400+30:1800+30"]

1. d4 {[%emt 0:00:00]} Nf6 {[%emt 0:00:00]} 2. c4 {[%emt 0:00:00]} e6 {[%emt 0:00:05]} 3. Nc3 {[%emt 0:00:00]} Bb4 {[%emt 0:00:23]} 4. f3 {[%emt 0:00:00]} d5 {[%emt 0:00:50]} 5. a3 {[%emt 0:00:00]} Bxc3+ {[%emt 0:02:46]} 6. bxc3 {[%emt 0:00:18]} b6 {[%emt 0:15:13]} 7. cxd5 {[%emt 0:00:39]} exd5 {[%emt 0:01:18]} 8. e3 {[%emt 0:00:13]} Qd7 {[%emt 0:01:29]} 9. Bd3 {[%emt 0:01:40]} Ba6 {[%emt 0:03:17]} 10. Ne2 {[%emt 0:00:10]} Bxd3 {[%emt 0:10:45]} 11. Qxd3 {[%emt 0:00:10]} O-O {[%emt 0:00:04]} 12. O-O {[%emt 0:00:06]} Nc6 {[%emt 0:05:29]} 13. e4 {[%emt 0:07:03]} Na5 {[%emt 0:04:00]} 14. Ng3 {[%emt 0:08:11]} Nb3 {[%emt 0:05:33]} 15. Rb1 {[%emt 0:00:11]} Nxc1 {[%emt 0:00:05]} 16. Rbxc1 {[%emt 0:00:03]} Kh8 {[%emt 0:15:34]} 17. c4 {[%emt 0:09:55]} dxe4 {[%emt 0:03:38]} 18. fxe4 {[%emt 0:00:52]} Ng4 {[%emt 0:01:11]} 19. Rf5 {[%emt 0:04:37]} Rad8 {[%emt 0:00:53]} 20. h3 {[%emt 0:05:10]} Nh6 {[%emt 0:00:47]} 21. Rd5 {[%emt 0:00:05]} Qe7 {[%emt 0:00:48]} 22. Rf1 {[%emt 0:07:52]} Rd6 {[%emt 0:07:07]} 23. Rh5 {[%emt 0:06:09]} Rf6 {[%emt 0:02:05]} 24. Re1 {[%emt 0:07:48]} Rd8 {[%emt 0:03:53]} 25. e5 {[%emt 0:07:41]} Rf4 {[%emt 0:01:08]} 26. Re4 {[%emt 0:00:42]} Rxe4 {[%emt 0:02:05]} 27. Nxe4 {[%emt 0:00:44]} Qf8 {[%emt 0:10:45]} 28. Ng5 {[%emt 0:02:14]} Qg8 {[%emt 0:00:15]} 29. d5 {[%emt 0:00:12]} Re8 {[%emt 0:01:40]} 30. e6 {[%emt 0:01:56]} fxe6 {[%emt 0:01:18]} 31. dxe6 {[%emt 0:00:33]} Re7 {[%emt 0:00:08]} 32. Qd4 {[%emt 0:02:46]} Nf5 {[%emt 0:00:55]} 33. Qe5 {[%emt 0:03:28]} Nd6 {[%emt 0:00:09]} 34. Rxh7+ {[%emt 0:01:41]} Qxh7 {[%emt 0:00:02]} 35. Nxh7 {[%emt 0:00:04]} Kxh7 {[%emt 0:00:03]} 36. c5 {[%emt 0:01:12]} bxc5 {[%emt 0:00:04]} 37. Qxc5 {[%emt 0:00:04]} Rxe6 {[%emt 0:01:17]} 38. Qxa7 {[%emt 0:00:14]} Re1+ {[%emt 0:00:30]} 39. Kh2 {[%emt 0:00:46]} Rc1 {[%emt 0:00:24]} 40. Qe3 {[%emt 0:00:00]} Rc4 {[%emt 0:00:00]} 41. Qb3 {[%emt 0:00:50]} Kg6 {[%emt 0:11:03]} 42. a4 {[%emt 0:00:33]} Rc5 {[%emt 0:00:06]} 43. Qb4 {[%emt 0:00:31]} Rc4 {[%emt 0:02:37]} 44. Qb1+ {[%emt 0:00:05]} Kf6 {[%emt 0:00:22]} 45. Qa1+ {[%emt 0:01:01]} Ke6 {[%emt 0:00:48]} 46. a5 {[%emt 0:00:12]} Nb5 {[%emt 0:00:19]} 47. a6 {[%emt 0:00:54]} 1-0

[Event "POL-chT DMP Ekstraliga 2019"]
[Site "Katowice"]
[Date "2019.09.01"]
[Round "5.24"]
[White "Socko, Monika"]
[Black "Antolak, Julia"]
[Result "1-0"]
[ECO "D85"]
[WhiteElo "2436"]
[BlackElo "2240"]
[Annotator "ChessBase"]
[PlyCount "59"]
[EventDate "2019.08.28"]
[EventType "team-tourn"]
[EventCountry "POL"]
[SourceTitle "playchess.com"]
[Source "ChessBase"]
[SourceQuality "1"]
[TimeControl "40/5400+30:1800+30"]

1. d4 {[%emt 0:00:00]} Nf6 {[%emt 0:00:00]} 2. c4 {[%emt 0:00:00]} g6 {[%emt 0:00:00]} 3. Nc3 {[%emt 0:00:00]} d5 {[%emt 0:00:00]} 4. cxd5 {[%emt 0:00:00]} Nxd5 {[%emt 0:00:00]} 5. e4 {[%emt 0:00:00]} Nxc3 {[%emt 0:00:01]} 6. bxc3 {[%emt 0:00:00]} Bg7 {[%emt 0:00:05]} 7. Nf3 {[%emt 0:00:02]} c5 {[%emt 0:00:29]} 8. Bb5+ {[%emt 0:00:11]} Bd7 {[%emt 0:03:16]} 9. Be2 {[%emt 0:00:17]} O-O {[%emt 0:15:58]} 10. O-O {[%emt 0:00:09]} Bg4 {[%emt 0:02:02]} 11. Be3 {[%emt 0:03:05]} cxd4 {[%emt 0:11:31]} 12. cxd4 {[%emt 0:00:53]} Nc6 {[%emt 0:00:10]} 13. d5 {[%emt 0:01:07]} Bxf3 {[%emt 0:07:20]} 14. Bxf3 {[%emt 0:01:28]} Ne5 {[%emt 0:00:29]} 15. Be2 {[%emt 0:02:01]} b6 {[%emt 0:15:26]} 16. Rc1 {[%emt 0:07:24]} Nd7 {[%emt 0:06:55]} 17. f4 {[%emt 0:03:56]} Rc8 {[%emt 0:06:08]} 18. Rc6 {[%emt 0:07:30]} Nc5 {[%emt 0:04:17]} 19. e5 {[%emt 0:05:43]} f6 {[%emt 0:05:39]} 20. Bg4 {[%emt 0:09:46]} Rb8 {[%emt 0:01:46]} 21. Re1 {[%emt 0:11:08]} fxe5 {[%emt 0:03:17]} 22. fxe5 {[%emt 0:00:05]} Kh8 {[%emt 0:00:39]} 23. Bg5 {[%emt 0:04:26]} Qe8 {[%emt 0:03:38]} 24. Rc7 {[%emt 0:02:01]} Qf7 {[%emt 0:03:47]} 25. Bf3 {[%emt 0:00:17]} Qf5 {[%emt 0:00:58]} 26. Bxe7 {[%emt 0:02:58]} Bxe5 {[%emt 0:00:21]} 27. Bxf8 {[%emt 0:01:08]} Rxf8 {[%emt 0:01:31]} 28. Re7 {[%emt 0:01:55]} Nd3 {[%emt 0:01:39]} 29. R1xe5 {[%emt 0:02:28]} Nxe5 {[%emt 0:00:13]} 30. Qa1 {[%emt 0:00:13]} 1-0

[Event "POL-chT DMP Ekstraliga 2019"]
[Site "Katowice"]
[Date "2019.09.01"]
[Round "5.27"]
[White "Kanarek, Marcel"]
[Black "Mastrovasilis, Dimitrios"]
[Result "1/2-1/2"]
[ECO "A06"]
[WhiteElo "2493"]
[BlackElo "2594"]
[Annotator "ChessBase"]
[PlyCount "61"]
[EventDate "2019.08.28"]
[EventType "team-tourn"]
[EventCountry "POL"]
[SourceTitle "playchess.com"]
[Source "ChessBase"]
[SourceQuality "1"]
[TimeControl "40/5400+30:1800+30"]

1. Nf3 {[%emt 0:00:00]} d5 {[%emt 0:00:00]} 2. g3 {[%emt 0:00:00]} c6 {[%emt 0:01:01]} 3. Bg2 {[%emt 0:00:00]} Bf5 {[%emt 0:00:11]} 4. O-O {[%emt 0:00:00]} e6 {[%emt 0:00:07]} 5. d3 {[%emt 0:00:42]} Nf6 {[%emt 0:01:24]} 6. c4 {[%emt 0:01:15]} dxc4 {[%emt 0:04:26]} 7. dxc4 {[%emt 0:01:57]} Qxd1 {[%emt 0:00:36]} 8. Rxd1 {[%emt 0:00:03]} Nbd7 {[%emt 0:02:00]} 9. Nc3 {[%emt 0:04:25]} e5 {[%emt 0:06:22]} 10. Ng5 {[%emt 0:05:01]} h6 {[%emt 0:18:51]} 11. Nge4 {[%emt 0:00:48]} Nxe4 {[%emt 0:00:43]} 12. Nxe4 {[%emt 0:00:16]} Nc5 {[%emt 0:01:08]} 13. Nd6+ {[%emt 0:08:32]} Bxd6 {[%emt 0:00:11]} 14. Rxd6 {[%emt 0:00:05]} Ke7 {[%emt 0:02:56]} 15. Rd2 {[%emt 0:21:36]} Rhd8 {[%emt 0:12:20]} 16. b3 {[%emt 0:00:57]} Ne4 {[%emt 0:20:43]} 17. Ba3+ {[%emt 0:01:35]} Kf6 {[%emt 0:01:31]} 18. Rd3 {[%emt 0:03:56]} Ng5 {[%emt 0:08:00]} 19. Rdd1 {[%emt 0:07:45]} Ne6 {[%emt 0:01:17]} 20. Bb2 {[%emt 0:06:40]} g5 {[%emt 0:00:16]} 21. Kf1 {[%emt 0:11:48]} Bc2 {[%emt 0:00:45]} 22. Rdc1 {[%emt 0:00:30]} Bf5 {[%emt 0:00:13]} 23. Rd1 {[%emt 0:01:20]} Bc2 {[%emt 0:00:23]} 24. Rdc1 {[%emt 0:01:58]} Bf5 {[%emt 0:00:08]} 25. b4 {[%emt 0:02:44]} Rd2 {[%emt 0:03:29]} 26. Bc3 {[%emt 0:00:47]} Rd7 {[%emt 0:00:03]} 27. b5 {[%emt 0:04:11]} cxb5 {[%emt 0:00:26]} 28. cxb5 {[%emt 0:00:06]} Rad8 {[%emt 0:00:07]} 29. a4 {[%emt 0:08:39]} Nd4 {[%emt 0:01:45]} 30. Bxd4 {[%emt 0:01:54]} exd4 {[%emt 0:00:02]} 31. Rc5 {[%emt 0:01:15] Ke5} 1/2-1/2

[Event "POL-chT DMP Ekstraliga 2019"]
[Site "Katowice"]
[Date "2019.09.01"]
[Round "5.28"]
[White "Tazbir, Marcin"]
[Black "Janik, Igor"]
[Result "1-0"]
[ECO "A11"]
[WhiteElo "2521"]
[BlackElo "2483"]
[Annotator "RC"]
[PlyCount "61"]
[EventDate "2019.08.28"]
[EventType "team-tourn"]
[EventCountry "POL"]
[SourceTitle "playchess.com"]
[Source "ChessBase"]
[SourceQuality "1"]
[TimeControl "40/5400+30:1800+30"]

1. c4 {[%emt 0:00:00]} c6 {[%emt 0:00:00]} 2. Nf3 {[%emt 0:00:20]} d5 {[%emt 0:00:00]} 3. Qc2 {[%emt 0:01:22]} Nf6 {[%emt 0:01:15]} 4. g3 {[%emt 0:01:03]} g6 {[%emt 0:00:48]} 5. Bg2 {[%emt 0:00:07]} Bg7 {[%emt 0:00:38]} 6. O-O {[%emt 0:00:06]} O-O {[%emt 0:01:19]} 7. d3 {[%emt 0:00:54]} Bg4 {[%emt 0:01:27]} 8. b3 {[%emt 0:04:48]} Bxf3 {[%emt 0:03:57]} 9. Bxf3 {[%emt 0:00:20]} e6 {[%emt 0:00:03]} 10. Bb2 {[%emt 0:00:31]} Nbd7 {[%emt 0:01:59]} 11. Bg2 {[%emt 0:02:01]} b5 {[%emt 0:00:54]} 12. Nd2 {[%emt 0:01:29]} Qb6 {[%emt 0:01:43]} 13. e3 Rab8 {[%emt 0:05:25]} 14. Rab1 {[%emt 0:12:27]} Qa6 {[%emt 0:04:28]} 15. a3 {[%emt 0:09:56]} Rfc8 {[%emt 0:07:35]} 16. Rfc1 {[%emt 0:02:02]} Ne8 {[%emt 0:04:24]} 17. b4 {[%emt 0:10:11]} Nd6 {[%emt 0:03:28]} 18. Bxg7 {[%emt 0:02:50]} Kxg7 {[%emt 0:00:02]} 19. Qb2+ {[%emt 0:00:29]} f6 {[%emt 0:00:19]} 20. c5 {[%emt 0:03:28]} Nf7 {[%emt 0:00:53]} 21. e4 {[%emt 0:00:23]} Nde5 {[%emt 0:02:54]} 22. Qb3 {[%emt 0:07:10]} Rd8 {[%emt 0:05:29]} 23. Re1 {[%emt 0:13:24]} dxe4 {[%emt 0:12:56]} 24. Nxe4 {[%emt 0:00:22]} Rd5 {[%emt 0:00:05]} 25. f4 {[%emt 0:06:02]} Ng4 {[%emt 0:04:58]} 26. h3 {[%emt 0:05:28]} Ngh6 {[%emt 0:00:13]} 27. Qc3 {[%emt 0:01:20]} Rf5 {[%emt 0:04:25]} 28. Nxf6 {[%emt 0:03:33]} Rxf6 {[%emt 0:00:23]} 29. Rxe6 {[%emt 0:00:06]} Ng8 {[%emt 0:01:16]} 30. Rxc6 {[%emt 0:00:17]} Qa4 {[%emt 0:00:37]} 31. g4 {[%emt 0:01:23]} 1-0

[Event "POL-chT DMP Ekstraliga 2019"]
[Site "Katowice"]
[Date "2019.09.01"]
[Round "5.29"]
[White "Tomczak, Mikolaj"]
[Black "Sadzikowski, Daniel"]
[Result "1/2-1/2"]
[ECO "E16"]
[WhiteElo "2432"]
[BlackElo "2502"]
[Annotator "ChessBase"]
[PlyCount "90"]
[EventDate "2019.08.28"]
[EventType "team-tourn"]
[EventCountry "POL"]
[SourceTitle "playchess.com"]
[Source "ChessBase"]
[SourceQuality "1"]
[TimeControl "40/5400+30:1800+30"]

1. d4 {[%emt 0:00:00]} Nf6 {[%emt 0:00:00]} 2. c4 {[%emt 0:00:00]} e6 {[%emt 0:00:00]} 3. Nf3 {[%emt 0:00:00]} b6 {[%emt 0:00:46]} 4. g3 {[%emt 0:00:06]} Bb7 {[%emt 0:00:30]} 5. Bg2 {[%emt 0:00:07]} Bb4+ {[%emt 0:00:05]} 6. Bd2 {[%emt 0:00:13]} Be7 {[%emt 0:00:32]} 7. Nc3 {[%emt 0:00:41]} c6 {[%emt 0:01:04]} 8. e4 {[%emt 0:12:28]} d5 {[%emt 0:00:08]} 9. exd5 {[%emt 0:00:43]} cxd5 {[%emt 0:00:39]} 10. Ne5 {[%emt 0:01:10]} O-O {[%emt 0:00:31]} 11. O-O {[%emt 0:00:40]} Nc6 {[%emt 0:00:26]} 12. cxd5 {[%emt 0:04:58]} Nxe5 {[%emt 0:04:24]} 13. dxe5 {[%emt 0:04:14]} Nxd5 {[%emt 0:00:48]} 14. Nxd5 {[%emt 0:11:32]} Bxd5 {[%emt 0:00:10]} 15. Bc3 {[%emt 0:00:32]} Qc7 {[%emt 0:08:22]} 16. Bxd5 {[%emt 0:01:05]} Rad8 {[%emt 0:00:26]} 17. Qb3 {[%emt 0:04:29]} Rxd5 {[%emt 0:01:21]} 18. Rad1 {[%emt 0:00:59]} Rfd8 {[%emt 0:03:15]} 19. Rxd5 {[%emt 0:00:05]} Rxd5 {[%emt 0:00:53]} 20. Rd1 {[%emt 0:00:26]} Rxd1+ {[%emt 0:02:45]} 21. Qxd1 {[%emt 0:00:03]} Qc6 {[%emt 0:00:01]} 22. h4 {[%emt 0:07:15]} g6 {[%emt 0:09:32]} 23. h5 {[%emt 0:01:29]} Kf8 {[%emt 0:00:15]} 24. hxg6 {[%emt 0:07:09]} fxg6 {[%emt 0:06:48]} 25. Qd2 {[%emt 0:07:24]} a5 {[%emt 0:15:09]} 26. Bd4 {[%emt 0:01:54]} a4 {[%emt 0:02:57]} 27. Be3 {[%emt 0:02:18]} Ke8 {[%emt 0:00:27]} 28. Kh2 {[%emt 0:03:58]} b5 {[%emt 0:01:13]} 29. a3 {[%emt 0:13:12]} Qc7 {[%emt 0:12:44]} 30. Bd4 {[%emt 0:02:45]} Qd7 {[%emt 0:06:42]} 31. Qf4 {[%emt 0:01:50]} Qd5 {[%emt 0:01:19]} 32. Bc3 {[%emt 0:01:08]} g5 {[%emt 0:00:47]} 33. Qg4 {[%emt 0:00:37]} Kd7 {[%emt 0:00:33]} 34. Qe2 {[%emt 0:02:22]} h6 {[%emt 0:07:17]} 35. Kg1 {[%emt 0:02:47]} Kd8 {[%emt 0:05:58]} 36. Qh5 {[%emt 0:01:11]} Qd3 {[%emt 0:04:12]} 37. Qxh6 {[%emt 0:01:32]} Qb1+ {[%emt 0:03:15]} 38. Kh2 {[%emt 0:00:25]} Qf5 {[%emt 0:00:23]} 39. Bd4 {[%emt 0:01:18]} Qe4 {[%emt 0:01:48]} 40. Bb6+ {[%emt 0:00:00]} Kd7 {[%emt 0:00:00]} 41. Qg7 {[%emt 0:05:55]} Ke8 {[%emt 0:01:06]} 42. Be3 {[%emt 0:03:17]} g4 {[%emt 0:03:33]} 43. Ba7 {[%emt 0:18:52]} Qf5 {[%emt 0:05:25]} 44. Bb6 {[%emt 0:02:33]} Qe4 {[%emt 0:02:44]} 45. Be3 {[%emt 0:00:43]} Qf5 {[%emt 0:01:53]} 1/2-1/2